bitfinex-derivatives/quotes_BNBF0:USTF0_20250111
["timestamp","ask_amount","ask_price","bid_price","bid_amount"]
[1736611077481,1.07269743,695.52,694.57,0.28061761]
[1736611078481,1.07269743,695.51,694.57,0.28061761]
[1736611080278,1.07269743,695.48,694.57,0.28061761]
[1736611082084,1.07269743,695.47,694.57,0.28061761]
[1736611084288,1.07269743,695.46,694.57,0.28061761]
[1736611089088,1.07269743,695.45,694.57,0.28061761]
[1736611089993,1.07269743,695.44,694.57,0.28061761]
[1736611091888,1.07269743,695.45,694.57,0.28061761]
[1736611092795,2.19492797,696.38,694.57,0.28061761]
[1736611092796,1.07269743,695.52,694.57,0.28061761]
[1736611095096,1.07269743,695.49,694.57,0.28061761]
[1736611099198,1.07269743,695.5,694.57,0.28061761]
[1736611099998,1.07506676,695.85,694.57,0.28061761]
[1736611099999,1.07269743,695.49,694.57,0.28061761]
[1736611101702,1.07269743,695.41,694.57,0.28061761]
[1736611104307,0.88750132,695.89,694.57,0.28061761]
[1736611104308,1.07269743,695.38,694.57,0.28061761]
[1736611105310,1.07269743,695.39,694.57,0.28061761]
[1736611107407,1.07269743,695.4,694.57,0.28061761]
[1736611108110,1.07269743,695.39,694.57,0.28061761]
[1736611113811,1.07269743,695.38,694.57,0.28061761]
[1736611114610,1.07269743,695.39,694.57,0.28061761]
[1736611119312,1.07269743,695.38,694.57,0.28061761]
[1736611120119,1.07506676,695.57,694.57,0.28061761]
[1736611120120,1.07269743,695.42,694.57,0.28061761]
[1736611120914,1.07269743,695.41,694.57,0.28061761]
[1736611122015,1.07269743,695.42,694.57,0.28061761]
[1736611122821,1.07269743,695.41,694.57,0.28061761]
[1736611129624,1.07269743,695.38,694.57,0.28061761]
[1736611131322,1.07269743,695.39,694.57,0.28061761]
[1736611132024,1.07269743,695.38,694.57,0.28061761]
[1736611132928,1.07269743,695.39,694.57,0.28061761]
[1736611134329,1.07269743,695.38,694.57,0.28061761]
[1736611139036,1.07269743,695.39,694.57,0.28061761]
[1736611141938,1.07269743,695.38,694.57,0.28061761]
[1736611144042,1.07269743,695.39,694.57,0.28061761]
[1736611145138,1.07269743,695.38,694.57,0.28061761]
[1736611145940,1.07269743,695.4,694.57,0.28061761]
[1736611147944,1.07269743,695.39,694.57,0.28061761]
[1736611149246,1.07269743,695.38,694.57,0.28061761]
[1736611152749,1.07269743,695.39,694.57,0.28061761]
[1736611153848,1.07269743,695.4,694.57,0.28061761]
[1736611156352,1.07269743,695.39,694.57,0.28061761]
[1736611158151,1.07269743,695.4,694.57,0.28061761]
[1736611160061,1.07269743,695.39,694.57,0.28061761]
[1736611161154,1.07269743,695.38,694.57,0.28061761]
[1736611162258,1.07269743,695.39,694.57,0.28061761]
[1736611162958,1.07269743,695.41,694.57,0.28061761]
[1736611163960,1.07269743,695.45,694.57,0.28061761]
[1736611165560,1.07269743,695.44,694.57,0.28061761]
[1736611166458,1.07269743,695.43,694.57,0.28061761]
[1736611167264,1.07269743,695.44,694.57,0.28061761]
[1736611170462,0.88750132,695.9,694.57,0.28061761]
[1736611170463,1.07269743,695.45,694.57,0.28061761]
[1736611172962,1.07269743,695.46,694.57,0.28061761]
[1736611174163,1.07269743,695.41,694.57,0.28061761]
[1736611175260,1.07269743,695.47,694.57,0.28061761]
[1736611176357,1.07269743,695.48,694.57,0.28061761]
[1736611181770,1.07269743,695.49,694.57,0.28061761]
[1736611185270,1.07269743,695.46,694.57,0.28061761]
[1736611186569,1.07269743,695.45,694.57,0.28061761]
[1736611187572,1.07269743,695.44,694.57,0.28061761]
[1736611188370,1.29008011,695.93,694.57,0.28061761]
[1736611188371,1.07269743,695.6,694.57,0.28061761]
[1736611190974,1.07269743,695.61,694.57,0.28061761]
[1736611192074,1.07269743,695.66,694.57,0.28061761]
[1736611193374,1.07269743,695.63,694.57,0.28061761]
[1736611194875,1.07269743,695.66,694.57,0.28061761]
[1736611196677,1.07269743,695.68,694.57,0.28061761]
[1736611197276,1.07269743,695.69,694.57,0.28061761]
[1736611198075,1.07269743,695.7,694.57,0.28061761]
[1736611199079,1.07269743,695.75,694.57,0.28061761]
[1736611200974,0.28739348,695.91,694.57,0.28061761]
[1736611207782,0.26429973,695.9,694.57,0.28061761]
[1736611208277,0.28739348,695.91,694.57,0.28061761]
[1736611208482,0.26429914,695.9,694.57,0.28061761]
[1736611210882,0.26428168,695.89,694.57,0.28061761]
[1736611211178,0.26428168,695.88,694.57,0.28061761]
[1736611211480,0.26428168,695.87,694.57,0.28061761]
[1736611211678,0.28739348,695.91,694.57,0.28061761]
[1736611211876,0.26429577,695.9,694.57,0.28061761]
[1736611212076,0.28739348,695.91,694.57,0.28061761]
[1736611215384,5.73830779,700.09,694.57,0.28061761]
[1736611215581,0.28578777,699.82,694.57,0.28061761]
[1736611215884,8.03430652,699.81,694.57,0.28061761]
[1736611216185,6.00274659,699.8,694.57,0.28061761]
[1736611216379,6.00274659,699.79,694.57,0.28061761]
[1736611216578,2.03174482,699.81,694.57,0.28061761]
[1736611216579,6.00274659,699.78,694.57,0.28061761]
[1736611216777,5.73850435,699.77,694.57,0.28061761]
[1736611216984,1.07254752,695.94,694.57,0.28061761]
[1736611217888,1.07254752,696.1,694.57,0.28061761]
[1736611218094,0.26422318,696.09,694.57,0.28061761]
[1736611218887,0.26422428,696.08,694.57,0.28061761]
[1736611219093,1.07254752,696.12,694.57,0.28061761]
[1736611219394,1.33676735,696.11,694.57,0.28061761]
[1736611219592,0.26421983,696.1,694.57,0.28061761]
[1736611220386,0.26421983,696.09,694.57,0.28061761]
[1736611220587,1.07254752,696.14,694.57,0.28061761]
[1736611220791,0.26421791,696.13,694.57,0.28061761]
[1736611221192,1.07254752,696.15,694.57,0.28061761]
[1736611221193,0.26421791,696.12,694.57,0.28061761]
[1736611221392,0.26421673,696.11,694.57,0.28061761]
[1736611221589,0.26421673,696.1,694.57,0.28061761]
[1736611221793,0.26421673,696.09,694.57,0.28061761]
[1736611221992,0.26421673,696.08,694.57,0.28061761]
[1736611222191,0.26421673,696.07,694.57,0.28061761]
[1736611222494,0.28732329,696.08,694.57,0.28061761]
[1736611224689,0.2641926,696.07,694.57,0.28061761]
[1736611224896,0.26419721,696.07,694.57,0.28061761]
[1736611225697,0.28733155,696.06,694.57,0.28061761]
[1736611225898,0.26419721,696.05,694.57,0.28061761]
[1736611226099,0.2873398,696.04,694.57,0.28061761]
[1736611226299,0.26419721,696.03,694.57,0.28061761]
[1736611226499,0.28734806,696.02,694.57,0.28061761]
[1736611226694,0.2642162,696.01,694.57,0.28061761]
[1736611226893,0.28735632,696.0,694.57,0.28061761]
[1736611227099,0.26422163,695.99,694.57,0.28061761]
[1736611227295,0.28736457,695.98,694.57,0.28061761]
[1736611251324,1.07254752,695.94,694.6,1.28912552]
[1736611251524,1.07254752,695.94,694.61,0.28793135]
[1736611252127,1.07254752,695.92,694.64,1.28912552]
[1736611253129,1.07254752,695.92,694.65,1.28912552]
[1736611254028,0.28736457,695.98,694.61,0.28793135]
[1736611270050,1.07254752,695.97,694.61,0.28793135]
[1736611271046,1.07254752,695.9,694.61,0.28793135]
[1736611271247,1.07254752,695.9,694.67,1.28912552]
[1736611272251,1.07254752,695.88,694.66,1.28912552]
[1736611273150,1.07254752,695.97,694.61,0.28793135]
[1736611273944,0.28737283,695.96,694.61,0.28793135]
[1736611274150,1.07254752,695.95,694.61,0.28793135]
[1736611274342,0.28738109,695.94,694.61,0.28793135]
[1736611295971,1.07254752,695.89,694.61,0.28793135]
[1736611296264,0.28740587,695.88,694.61,0.28793135]
[1736611296664,1.35995339,695.88,694.61,0.28793135]
[1736611297564,1.07254752,695.87,694.61,0.28793135]
[1736611297764,0.28741413,695.86,694.61,0.28793135]
[1736611298869,1.35996165,695.86,694.61,0.28793135]
[1736611299674,1.07254752,695.85,694.61,0.28793135]
[1736611300269,0.28742239,695.84,694.61,0.28793135]
[1736611301176,1.35996991,695.84,694.61,0.28793135]
[1736611302073,1.07254752,695.82,694.61,0.28793135]
[1736611303475,1.07254752,695.81,694.61,0.28793135]
[1736611304375,1.07254752,695.79,694.61,0.28793135]
[1736611305171,0.28742239,695.84,694.61,0.28793135]
[1736611305172,1.07254752,695.78,694.61,0.28793135]
[1736611306176,1.07254752,695.72,694.61,0.28793135]
[1736611307175,1.07254752,695.7,694.61,0.28793135]
[1736611307876,1.07254752,695.71,694.61,0.28793135]
[1736611308780,1.07254752,695.72,694.61,0.28793135]
[1736611309678,1.07254752,695.73,694.61,0.28793135]
[1736611311081,1.07254752,695.76,694.61,0.28793135]
[1736611312173,1.07254752,695.77,694.61,0.28793135]
[1736611312980,0.28742239,695.84,694.61,0.28793135]
[1736611312981,1.07254752,695.76,694.61,0.28793135]
[1736611316288,1.07254752,695.75,694.61,0.28793135]
[1736611317785,1.07254752,695.76,694.61,0.28793135]
[1736611318589,1.07254752,695.77,694.61,0.28793135]
[1736611319691,1.07254752,695.8,694.61,0.28793135]
[1736611320791,1.07254752,695.78,694.61,0.28793135]
[1736611323889,1.07254752,695.77,694.61,0.28793135]
[1736611325689,0.28742239,695.84,694.61,0.28793135]
[1736611328100,1.07716012,695.75,694.61,0.28793135]
[1736611328599,1.07716012,695.77,694.61,0.28793135]
[1736611329098,1.07716012,695.73,694.61,0.28793135]
[1736611330494,1.07716012,695.72,694.61,0.28793135]
[1736611334300,1.07716012,695.73,694.61,0.28793135]
[1736611335203,0.28742239,695.84,694.61,0.28793135]
[1736611335204,1.07716012,695.74,694.61,0.28793135]
[1736611336002,1.07716012,695.69,694.61,0.28793135]
[1736611336901,1.07716012,695.71,694.61,0.28793135]
[1736611340507,1.07716012,695.69,694.61,0.28793135]
[1736611341303,0.28742239,695.84,694.61,0.28793135]
[1736611341304,1.07716012,695.66,694.61,0.28793135]
[1736611343506,1.07716012,695.68,694.61,0.28793135]
[1736611345402,1.07716012,695.7,694.61,0.28793135]
[1736611345907,0.28742239,695.84,694.61,0.28793135]
[1736611345908,1.07716012,695.67,694.61,0.28793135]
[1736611346705,1.07716012,695.68,694.61,0.28793135]
[1736611347605,1.07716012,695.69,694.61,0.28793135]
[1736611348706,1.07716012,695.7,694.61,0.28793135]
[1736611349708,1.07716012,695.73,694.61,0.28793135]
[1736611351607,1.07716012,695.71,694.61,0.28793135]
[1736611352711,0.28742239,695.84,694.61,0.28793135]
[1736611352712,1.07716012,695.73,694.61,0.28793135]
[1736611353508,1.07716012,695.72,694.61,0.28793135]
[1736611355712,1.07716012,695.71,694.61,0.28793135]
[1736611356813,0.28742239,695.84,694.61,0.28793135]
[1736611356814,1.07716012,695.72,694.61,0.28793135]
[1736611357914,1.07716012,695.74,694.61,0.28793135]
[1736611360721,1.07716012,695.73,694.61,0.28793135]
[1736611364623,1.07716012,695.72,694.61,0.28793135]
[1736611365624,1.07716012,695.71,694.61,0.28793135]
[1736611367625,1.07716012,695.82,694.61,0.28793135]
[1736611367923,1.36459077,695.82,694.61,0.28793135]
[1736611369825,1.07716012,695.81,694.61,0.28793135]
[1736611370525,0.28743891,695.8,694.61,0.28793135]
[1736611370720,1.36459903,695.8,694.61,0.28793135]
[1736611371322,1.07716012,695.79,694.61,0.28793135]
[1736611371624,0.28744718,695.78,694.61,0.28793135]
[1736611373126,1.07716012,695.77,694.61,0.28793135]
[1736611374225,1.36461143,695.77,694.61,0.28793135]
[1736611374425,0.28745131,695.77,694.61,0.28793135]
[1736611376930,1.07716012,695.68,694.61,0.28793135]
[1736611378032,0.28745131,695.77,694.61,0.28793135]
[1736611378033,1.07716012,695.67,694.61,0.28793135]
[1736611379231,1.07716012,695.65,694.61,0.28793135]
[1736611381034,1.07716012,695.66,694.61,0.28793135]
[1736611381832,1.07716012,695.65,694.61,0.28793135]
[1736611382734,1.07716012,695.64,694.61,0.28793135]
[1736611385541,1.07716012,695.65,694.61,0.28793135]
[1736611386237,1.07716012,695.64,694.61,0.28793135]
[1736611387333,1.07716012,695.65,694.61,0.28793135]
[1736611388239,1.07716012,695.67,694.61,0.28793135]
[1736611390032,1.07716012,695.74,694.61,0.28793135]
[1736611391241,1.07716012,695.76,694.61,0.28793135]
[1736611391940,0.28745131,695.77,694.61,0.28793135]
[1736611391941,1.36461143,695.77,694.61,0.28793135]
[1736611394041,0.28745131,695.77,694.61,0.28793135]
[1736611399643,1.36461143,695.77,694.61,0.28793135]
[1736611402644,0.28745131,695.77,694.61,0.28793135]
[1736611403548,1.36461143,695.77,694.61,0.28793135]
[1736611404248,0.28745131,695.77,694.61,0.28793135]
[1736611423067,0.28745131,695.77,694.55,0.28795623]
[1736611423761,0.28745131,695.77,694.55,3.50124985]
[1736611425865,0.28745131,695.77,694.55,6.62940997]
[1736611426066,0.28745131,695.77,694.56,3.21329362]
[1736611426467,0.28745131,695.77,694.57,0.28794793]
[1736611427366,1.07716012,696.11,694.57,3.50124155]
[1736611427768,1.07716012,696.12,694.57,3.50124155]
[1736611428868,1.07716012,696.12,694.57,6.62940167]
[1736611429065,1.07716012,696.12,694.58,3.21329362]
[1736611429266,1.07716012,696.12,694.59,0.28793964]
[1736611429973,0.26416579,696.11,694.59,0.28793964]
[1736611430373,0.26416579,696.11,694.59,3.50123326]
[1736611431172,1.34132591,696.11,694.59,6.62939338]
[1736611431476,1.07716012,696.11,694.6,3.21329362]
[1736611431674,1.07716012,696.11,694.61,0.28793135]
[1736611432375,1.07716012,696.09,694.61,0.28793135]
[1736611432968,1.07716012,696.09,694.61,3.50122497]
[1736611433172,1.07716012,696.1,694.61,3.50122497]
[1736611433767,1.07716012,696.09,694.61,3.50122497]
[1736611434676,1.07716012,696.09,694.61,6.62938509]
[1736611434976,1.07716012,696.09,694.62,3.21329362]
[1736611435177,1.07716012,696.09,694.63,0.28792306]
[1736611436388,1.07716012,696.08,694.63,3.50121668]
[1736611437372,1.07716012,696.07,694.63,3.50121668]
[1736611438279,1.07716012,696.07,694.63,6.6293768]
[1736611438477,1.07716012,696.03,694.64,3.21329362]
[1736611438677,1.07716012,696.03,694.65,0.28791477]
[1736611439576,1.07716012,696.02,694.65,0.28791477]
[1736611439974,1.07716012,696.02,694.65,3.50120839]
[1736611440174,1.07716012,696.0,694.65,4.79457957]
[1736611440481,1.07716012,696.0,694.66,1.19493173]
[1736611440680,1.07716012,696.0,694.67,0.28790648]
[1736611441285,1.07716012,695.97,694.68,1.29337118]
[1736611441880,1.07716012,695.97,694.68,2.48830291]
[1736611442079,1.07716012,696.15,694.68,2.48830291]
[1736611442080,1.07716012,695.89,694.71,1.29337118]
[1736611443081,1.07716012,695.89,694.74,1.29337118]
[1736611443980,1.07716012,695.91,694.77,1.29337118]
[1736611445275,1.07716012,695.93,694.78,1.29337118]
[1736611446283,1.07716012,695.94,694.79,1.29337118]
[1736611446976,1.07716012,696.0,694.82,1.29337118]
[1736611447782,1.07716012,696.02,694.84,1.29337118]
[1736611448680,0.88836139,696.35,694.8,1.29337118]
[1736611448681,1.07716012,696.06,694.8,1.29337118]
[1736611449681,1.07716012,696.09,694.78,4.5066648]
[1736611450378,1.07716012,696.09,694.79,0.28785676]
[1736611450583,1.07716012,696.11,694.79,1.48278849]
[1736611450782,1.07716012,696.11,694.79,0.28785676]
[1736611450983,1.07716012,696.11,694.79,3.50115038]
[1736611451580,1.07716012,696.12,694.79,3.50115038]
[1736611452283,1.07716012,696.12,694.79,6.6293105]
[1736611452483,1.07716012,696.16,694.8,3.21329362]
[1736611453583,1.07716012,696.22,694.8,3.21329362]
[1736611454485,1.07716012,696.23,694.8,3.21329362]
[1736611454684,1.07716012,696.23,694.8,6.34145374]
[1736611454885,1.07716012,696.23,694.81,2.01836189]
[1736611455288,1.07716012,696.24,694.8,3.12816012]
[1736611455482,1.36441738,696.24,694.8,3.12816012]
[1736611455883,1.36441738,696.24,694.79,0.28785676]
[1736611456081,0.28725726,696.24,694.79,0.28785676]
[1736611479898,1.07716012,696.21,694.81,1.29337118]
[1736611480791,1.07716012,696.21,694.82,0.28784433]
[1736611481091,0.28725726,696.24,694.82,0.28784433]
[1736611481092,1.07716012,696.2,694.85,1.29337118]
[1736611481297,1.07716012,696.2,694.86,0.28782776]
[1736611481997,1.07716012,696.19,694.86,0.28782776]
[1736611482897,0.28725726,696.24,694.86,0.28782776]
[1736611482898,1.07716012,696.18,694.86,0.28782776]
[1736611484500,1.07716012,696.17,694.86,0.28782776]
[1736611485695,1.07716012,696.14,694.91,1.29337118]
[1736611487698,1.07716012,696.13,694.91,1.29337118]
[1736611488600,1.07716012,696.13,694.92,1.29337118]
[1736611489193,1.07716012,696.12,694.92,1.29337118]
[1736611491101,1.07716012,696.13,694.94,1.29337118]
[1736611492804,1.07716012,696.12,694.93,4.49809068]
[1736611493400,1.07716012,696.12,694.94,3.12816012]
[1736611493606,1.07716012,696.12,694.94,6.33287962]
[1736611493805,1.07716012,696.12,694.95,3.2047195]
[1736611495609,1.07716012,696.11,694.95,3.2047195]
[1736611497004,1.07716012,696.11,694.95,6.33287962]
[1736611497204,1.07716012,696.11,694.96,3.2047195]
[1736611497812,1.07716012,696.1,694.96,3.2047195]
[1736611499806,1.07716012,696.1,694.96,6.33287962]
[1736611500011,1.07716012,696.1,694.97,3.2047195]
[1736611500514,1.07716012,696.09,694.97,3.2047195]
[1736611502711,0.28725726,696.24,694.97,6.33287962]
[1736611502712,1.07716012,696.07,694.97,6.33287962]
[1736611502914,1.07716012,696.07,694.98,3.2047195]
[1736611503517,1.07716012,696.06,694.98,3.2047195]
[1736611504521,1.07716012,696.06,694.96,3.2047195]
[1736611505314,1.07716012,696.07,694.96,3.2047195]
[1736611506120,1.07716012,696.07,694.95,3.2047195]
[1736611506616,1.07716012,696.08,694.95,4.49809068]
[1736611507415,1.07716012,696.08,694.96,3.12816012]
[1736611507615,1.07716012,696.07,694.96,6.33287962]
[1736611507816,1.07716012,696.07,694.97,3.2047195]
[1736611508620,1.07716012,696.12,694.97,3.2047195]
[1736611509116,1.07716012,696.12,694.88,3.2047195]
[1736611509317,0.28725726,696.24,694.88,3.2047195]
[1736611509318,1.07716012,696.13,694.88,3.2047195]
[1736611510825,1.07716012,696.12,694.88,3.2047195]
[1736611511619,1.07716012,696.14,694.88,3.2047195]
[1736611512325,1.07716012,696.13,694.88,3.2047195]
[1736611513527,1.07716012,696.11,694.88,3.2047195]
[1736611514327,1.07716012,696.12,694.88,3.2047195]
[1736611515126,1.07716012,696.1,694.88,3.2047195]
[1736611516633,1.07716012,696.1,694.86,0.28782776]
[1736611517131,1.07716012,696.13,694.86,0.28782776]
[1736611517930,1.07716012,696.15,694.86,0.28782776]
[1736611518728,1.07716012,696.14,694.86,0.28782776]
[1736611519125,0.28730265,696.13,694.86,0.28782776]
[1736611520531,1.36446277,696.13,694.86,0.28782776]
[1736611521333,0.28730265,696.13,694.86,0.28782776]
[1736611525435,1.07716012,696.09,694.86,0.28782776]
[1736611525635,0.28732329,696.08,694.86,0.28782776]
[1736611538241,1.36448341,696.08,694.86,0.28782776]
[1736611539239,0.28732329,696.08,694.86,0.28782776]
[1736611540138,1.36448341,696.08,694.86,0.28782776]
[1736611540938,1.36448341,696.08,694.58,1.19385778]
[1736611541138,1.07716012,696.04,694.57,3.21254893]
[1736611541337,0.28734393,696.03,694.57,3.21254893]
[1736611541537,0.28734393,696.03,694.44,3.21254893]
[1736611541739,0.28734393,696.03,694.45,0.28799769]
[1736611541940,1.07716012,696.02,694.45,0.28799769]
[1736611542139,0.28735219,696.01,694.45,0.28799769]
[1736611546147,1.07716012,695.98,694.45,0.28799769]
[1736611546342,0.2873687,695.97,694.45,0.28799769]
[1736611547547,1.36452882,695.97,694.45,0.28799769]
[1736611548448,0.2873687,695.97,694.45,0.28799769]
[1736611549344,1.36452882,695.97,694.45,0.28799769]
[1736611550142,0.2873687,695.97,694.45,0.28799769]
[1736611571966,1.07716012,695.88,694.45,0.28799769]
[1736611572966,0.28741,695.87,694.45,0.28799769]
[1736611573659,1.07716012,695.86,694.45,0.28799769]
[1736611573863,0.28741826,695.85,694.45,0.28799769]
[1736611576064,1.07716012,695.84,694.45,0.28799769]
[1736611576765,1.36457838,695.85,694.45,0.28799769]
[1736611577461,0.28741826,695.85,694.45,0.28799769]
[1736611578265,1.07716012,695.83,694.45,0.28799769]
[1736611581069,1.07716012,695.82,694.45,0.28799769]
[1736611583771,1.07716012,695.76,694.47,1.29337118]
[1736611584571,1.07716012,695.75,694.47,1.29337118]
[1736611585267,1.07716012,695.74,694.46,1.29337118]
[1736611586070,1.07716012,695.74,694.48,1.29337118]
[1736611587273,1.07716012,695.81,694.45,0.28799769]
[1736611588268,1.07716012,695.77,694.45,0.28799769]
[1736611589275,1.07716012,695.78,694.45,0.28799769]
[1736611590275,1.07716012,695.8,694.45,0.28799769]
[1736611591175,1.07716012,695.81,694.45,0.28799769]
[1736611591379,1.3645949,695.81,694.45,0.28799769]
[1736611591977,0.28743478,695.81,694.45,0.28799769]
[1736611603187,1.07716012,695.78,694.45,0.28799769]
[1736611603887,1.07716012,695.8,694.45,0.28799769]
[1736611604789,1.07716012,695.78,694.45,0.28799769]
[1736611605688,1.07716012,695.66,694.46,1.29337118]
[1736611606486,1.07716012,695.67,694.47,1.29337118]
[1736611607791,1.07716012,695.69,694.49,1.29337118]
[1736611608486,0.28743478,695.81,694.47,1.29337118]
[1736611608487,1.07716012,695.67,694.47,1.29337118]
[1736611609988,1.07716012,695.68,694.48,1.29337118]
[1736611611590,1.07716012,695.69,694.49,1.29337118]
[1736611612493,0.28743478,695.81,694.48,1.29337118]
[1736611612494,1.07716012,695.68,694.48,1.29337118]
[1736611613490,1.07716012,695.68,694.49,1.29337118]
[1736611613891,0.28743478,695.81,694.48,3.20776292]
[1736611614793,1.07737544,695.68,694.5,1.29320019]
[1736611615193,1.07737544,695.68,694.5,4.50096311]
[1736611615394,1.07737544,695.68,694.51,3.20776292]
[1736611615792,1.07737544,695.68,694.5,1.29320019]
[1736611616391,1.07737544,695.68,694.45,0.28799769]
[1736611616392,1.07737544,695.66,694.49,1.29320019]
[1736611617293,1.07737544,695.7,694.45,0.28799769]
[1736611618194,1.07737544,695.69,694.45,0.28799769]
[1736611618988,0.28743478,695.81,694.45,0.28799769]
[1736611618989,1.07737544,695.74,694.45,0.28799769]
[1736611621193,1.07737544,695.75,694.45,0.28799769]
[1736611622398,1.07737544,695.68,694.45,0.28799769]
[1736611623593,1.07737544,695.59,694.45,0.28799769]
[1736611624897,1.07737544,695.62,694.45,0.28799769]
[1736611626095,1.07737544,695.64,694.45,0.28799769]
[1736611626996,1.50183954,695.98,694.45,0.28799769]
[1736611626997,0.28750916,695.63,694.45,0.28799769]
[1736611635503,0.28750916,695.63,693.75,1.29320019]
[1736611635801,0.28750916,695.63,693.77,0.28827997]
[1736611642699,0.26439506,695.62,693.77,0.28827997]
[1736611642906,0.28751743,695.61,693.77,0.28827997]
[1736611643105,0.26439506,695.6,693.77,0.28827997]
[1736611643306,0.55192072,695.59,693.77,0.28827997]
[1736611643509,0.28752983,695.58,693.77,0.28827997]
[1736611643902,0.28752983,695.58,693.78,1.29320019]
[1736611644105,0.28752983,695.58,693.8,0.28826751]
[1736611644305,0.26439781,695.57,693.8,0.28826751]
[1736611644608,0.28753809,695.56,693.8,0.28826751]
[1736611645008,0.28753809,695.56,693.8,1.5814677]
[1736611645208,0.26439911,695.55,693.8,1.5814677]
[1736611645408,0.28754636,695.54,693.8,1.5814677]
[1736611645811,0.28754636,695.54,693.82,1.29320019]
[1736611646611,0.28754636,695.54,693.84,0.28825089]
[1736611656115,1.07737544,695.51,693.84,0.28825089]
[1736611656315,0.26445726,695.5,693.84,0.28825089]
[1736611656712,0.28756703,695.49,693.84,0.28825089]
[1736611656913,0.26447884,695.48,693.84,0.28825089]
[1736611657114,1.07737544,695.43,693.84,0.28825089]
[1736611657315,0.28759598,695.42,693.84,0.28825089]
[1736611680544,0.26449847,695.41,693.84,0.28825089]
[1736611680938,1.34186561,695.4,693.84,0.28825089]
[1736611681138,0.55209856,695.39,693.84,0.28825089]
[1736611681343,0.55210269,695.38,693.84,0.28825089]
[1736611681544,0.55210683,695.37,693.84,0.28825089]
[1736611681739,0.2876208,695.36,693.84,0.28825089]
[1736611681946,1.07737544,695.35,693.84,0.28825089]
[1736611682138,0.28762907,695.34,693.84,0.28825089]
[1736611688658,1.07737544,695.28,693.84,0.28825089]
[1736611688852,0.28765803,695.27,693.84,0.28825089]
[1736611689760,1.07737544,695.23,693.84,0.28825089]
[1736611689958,0.28767872,695.22,693.84,0.28825089]
[1736611691657,1.07737544,695.18,693.84,0.28825089]
[1736611691860,0.28769941,695.17,693.84,0.28825089]
[1736611692062,0.28769941,695.17,693.36,1.29320019]
[1736611692361,0.26464806,695.16,693.36,1.29320019]
[1736611692759,1.07737544,694.97,693.36,0.28845044]
[1736611692955,0.28778634,694.96,693.36,0.28845044]
[1736611702863,0.26469939,694.95,693.36,0.28845044]
[1736611703061,0.28779877,694.93,693.36,0.28845044]
[1736611703259,0.26469939,694.92,693.36,0.28845044]
[1736611703461,0.28781119,694.9,693.36,0.28845044]
[1736611703663,0.26469939,694.89,693.36,0.28845044]
[1736611703864,0.28782362,694.87,693.36,0.28845044]
[1736611704060,0.26469939,694.86,693.36,0.28845044]
[1736611704264,0.28783604,694.84,693.36,0.28845044]
[1736611704466,0.26469939,694.83,693.36,0.28845044]
[1736611704665,0.28784847,694.81,693.36,0.28845044]
[1736611704862,0.26469939,694.8,693.36,0.28845044]
[1736611705060,0.28785676,694.79,693.36,0.28845044]
[1736611705361,0.26469939,694.78,693.36,0.28845044]
[1736611705566,0.28786504,694.77,693.36,0.28845044]
[1736611706063,0.26471343,694.76,693.36,0.28845044]
[1736611706368,0.28787333,694.75,693.36,0.28845044]
[1736611706560,0.26471343,694.74,693.36,0.28845044]
[1736611706866,0.28788162,694.73,693.36,0.28845044]
[1736611707568,0.26471593,694.72,693.36,0.28845044]
[1736611707766,0.28788991,694.71,693.36,0.28845044]
[1736611709865,0.26471645,694.7,693.36,0.28845044]
[1736611710066,0.55261385,694.69,693.36,0.28845044]
[1736611710266,1.50417105,695.04,693.36,0.28845044]
[1736611710267,0.552618,694.68,693.36,0.28845044]
[1736611710462,0.55262214,694.67,693.36,0.28845044]
[1736611710667,0.26472191,694.66,693.36,0.28845044]
[1736611710962,0.28791477,694.65,693.36,0.28845044]
[1736611711469,0.26472502,694.64,693.36,0.28845044]
[1736611711668,0.28791477,694.65,693.36,0.28845044]
[1736611727679,1.07737544,694.62,693.36,0.28845044]
[1736611728472,0.28791477,694.65,693.36,0.28845044]
[1736611728473,1.07737544,694.61,693.36,0.28845044]
[1736611729277,1.07737544,694.64,693.36,0.28845044]
[1736611731576,0.28791477,694.65,693.36,0.28845044]
[1736611732282,1.07737544,694.64,693.36,0.28845044]
[1736611733382,1.07737544,694.61,693.36,0.28845044]
[1736611734388,0.28791477,694.65,693.36,0.28845044]
[1736611734389,1.07737544,694.59,693.36,0.28845044]
[1736611735181,1.07737544,694.57,693.36,0.28845044]
[1736611736079,1.07737544,694.56,693.36,0.28845044]
[1736611739684,1.07737544,694.49,693.36,0.28845044]
[1736611740679,1.07737544,694.51,693.36,0.28845044]
[1736611742479,1.07737544,694.49,693.36,0.28845044]
[1736611743592,1.07737544,694.52,693.36,0.28845044]
[1736611744482,1.07737544,694.51,693.36,0.28845044]
[1736611745488,1.07737544,694.49,693.36,0.28845044]
[1736611746380,1.07737544,694.54,693.36,0.28845044]
[1736611747382,1.07737544,694.55,693.36,0.28845044]
[1736611748188,1.07737544,694.57,693.36,0.28845044]
[1736611748384,0.28795208,694.56,693.36,0.28845044]
[1736611749189,1.07737544,694.55,693.36,0.28845044]
[1736611750294,1.36532752,694.56,693.36,0.28845044]
[1736611751496,0.28795208,694.56,693.36,0.28845044]
[1736611797834,0.28795208,694.56,693.38,1.29364679]
[1736611802030,0.28795208,694.56,693.39,1.29364679]